bitfinex-derivatives/quotes_ETHF0:USTF0_20250405
["timestamp","ask_amount","ask_price","bid_price","bid_amount"]
[1743866348072,2.14738668,1789.2,1789.1,4.7487249]
[1743866348276,2.14738668,1789.2,1789.1,5.4218149]
[1743866348481,0.00838668,1789.2,1789.1,6.2046249]
[1743866349178,0.00838668,1789.2,1789.1,6.74480149]
[1743866349480,0.00838668,1789.2,1789.1,6.2042524]
[1743866350083,1.47928668,1789.2,1789.1,6.2042524]
[1743866354681,0.00838668,1789.2,1789.1,6.2042524]
[1743866354876,0.00838668,1789.2,1789.1,6.7447649]
[1743866356489,1.5038,1789.6,1789.2,1.95692]
[1743866356693,2.28111,1789.8,1789.6,0.78255]
[1743866356989,2.28111,1789.8,1789.6,3.64255]
[1743866357183,0.78255,1789.7,1789.6,2.86]
[1743866357585,0.78255,1789.7,1789.6,1.4611]
[1743866357786,0.7826,1789.6,1789.5,0.00838668]
[1743866358291,0.7826,1789.6,1789.5,0.7656964]
[1743866358489,0.7826,1789.6,1789.5,0.00838668]
[1743866360091,2.17747,1789.7,1789.5,0.00838668]
[1743866360290,2.17747,1789.7,1789.5,2.27210668]
[1743866360796,2.17747,1789.7,1789.5,1.48948668]
[1743866360993,1.3949,1789.6,1789.5,1.48948668]
[1743866361194,1.3949,1789.6,1789.5,2.2466277]
[1743866361496,2.17749,1789.6,1789.5,0.7655277]
[1743866361695,2.17749,1789.6,1789.5,0.00838668]
[1743866366199,2.17749,1789.6,1789.5,0.76639995]
[1743866366399,2.17749,1789.6,1789.5,0.00838668]
[1743866367198,2.17749,1789.6,1789.5,0.76668778]
[1743866369199,2.17749,1789.6,1789.5,0.76694999]
[1743866375198,2.17749,1789.6,1789.5,0.76693416]
[1743866376506,2.17749,1789.6,1789.5,0.76702663]
[1743866380313,2.17749,1789.6,1789.5,0.76757472]
[1743866382015,2.17749,1789.6,1789.5,0.76779281]
[1743866384415,2.17749,1789.6,1789.5,0.00838668]
[1743866384610,4.67749,1789.6,1789.5,6.68e-06]
[1743866384821,0.7829,1788.9,1788.8,2.9277]
[1743866385017,0.7829,1788.9,1788.8,4.18839864]
[1743866385724,0.78288,1789.0,1788.8,4.18380467]
[1743866386016,3.01341668,1789.1,1788.9,0.75526001]
[1743866386321,3.01341668,1789.1,1789.0,0.75526001]
[1743866386518,0.00838668,1789.1,1789.0,2.07455653]
[1743866387318,0.79119668,1789.1,1789.0,1.29170653]
[1743866387820,0.79119668,1789.1,1789.0,0.75526001]
[1743866388215,0.79119668,1789.1,1789.0,2.28446001]
[1743866389326,0.79119668,1789.1,1789.0,2.2836749]
[1743866392223,0.79119668,1789.1,1789.0,0.7544749]
[1743866392930,2.21189668,1789.1,1789.0,0.7544749]
[1743866393233,0.78285,1789.0,1788.9,1.478]
[1743866393528,2.21193668,1789.1,1788.9,2.23206131]
[1743866393828,2.21193668,1789.1,1789.0,0.75406131]
[1743866394725,0.78285,1789.0,1788.9,1.478]
[1743866394924,2.20355,1789.0,1788.9,1.478]
[1743866398831,0.79122668,1789.1,1788.9,1.478]
[1743866399030,0.00838668,1789.1,1788.9,1.478]
[1743866399230,0.00838668,1789.1,1789.0,1.53636511]
[1743866399433,0.79119668,1789.1,1789.0,0.75351511]
[1743866399730,0.78285,1789.0,1788.9,4.6858]
[1743866399934,0.78285,1789.0,1788.9,5.43934169]
[1743866400328,0.78285,1789.0,1788.9,2.23154169]
[1743866402433,0.78285,1789.0,1788.9,2.23160596]
[1743866403531,0.78285,1789.0,1788.9,2.23166224]
[1743866403733,2.28682668,1789.1,1788.9,2.23166224]
[1743866403935,2.28682668,1789.1,1789.0,1.4079]
[1743866406238,2.28682668,1789.1,1789.0,2.16184817]
[1743866406539,2.28682668,1789.1,1789.0,2.16184572]
[1743866406733,2.28682668,1789.1,1789.0,1.4079]
[1743866407236,2.28682668,1789.1,1789.0,2.16198467]
[1743866407539,2.28682668,1789.1,1789.0,1.4079]
[1743866408741,2.28682668,1789.1,1789.0,2.16212524]
[1743866408936,2.28682668,1789.1,1789.0,2.16212802]
[1743866409836,0.00838668,1789.1,1789.0,2.16212802]
[1743866410337,0.00838668,1789.1,1789.0,6.15277802]
[1743866410538,0.00838668,1789.1,1789.0,10.27102154]
[1743866410740,0.00838668,1789.1,1789.0,10.27130698]
[1743866411438,5.43377,1789.5,1789.2,0.78274]
[1743866411636,1.4433,1789.5,1789.3,4.54922127]
[1743866411943,1.4433,1789.5,1789.4,2.26722127]
[1743866412345,2.22593,1789.5,1789.4,2.26722127]
[1743866414439,1.4433,1789.5,1789.4,2.26722127]
[1743866414639,3.99036,1789.7,1789.4,3.04986127]
[1743866414839,4.6604,1789.7,1789.5,2.23412127]
[1743866415046,4.6604,1789.7,1789.6,2.1916]
[1743866415239,1.4526,1789.7,1789.6,2.8956]
[1743866415439,2.23515,1789.7,1789.6,2.8956]
[1743866415940,1.4526,1789.7,1789.6,3.64956311]
[1743866416148,1.4526,1789.7,1789.6,3.64921749]
[1743866417844,1.4526,1789.7,1789.6,3.64882654]
[1743866419442,0.78251,1789.8,1789.6,3.64882654]
[1743866419642,0.78255,1789.7,1789.6,1.416]
[1743866420743,2.29472,1789.8,1789.6,1.416]
[1743866421046,1.5122,1789.8,1789.6,1.416]
[1743866421247,1.5122,1789.8,1789.6,2.8604]
[1743866421650,1.5122,1789.8,1789.7,1.4444]
[1743866423347,2.2947,1789.8,1789.7,1.4444]
[1743866423750,3.2078,1790.3,1789.9,0.78244]
[1743866424055,2.31884,1790.2,1790.0,2.9813]
[1743866424741,2.31887,1790.1,1790.0,2.9813]
[1743866425055,1.5365,1790.1,1790.0,2.9813]
[1743866425255,2.31887,1790.1,1790.0,2.9813]
[1743866427359,2.31887,1790.1,1790.0,1.5167]
[1743866427547,0.78242,1790.0,1789.9,0.00838668]
[1743866427849,3.65562,1790.0,1789.9,0.00838668]
[1743866428454,6.15562,1790.0,1789.9,0.00838668]
[1743866428655,0.78259,1789.6,1789.4,1.4689]
[1743866429056,2.2073,1789.5,1789.4,1.4689]
[1743866429254,2.98993,1789.5,1789.4,42.2689]
[1743866429452,2.98993,1789.5,1789.4,40.8]
[1743866429659,2.98993,1789.5,1789.3,3.2078]
[1743866429955,1.4909,1789.4,1789.3,3.21618668]
[1743866430156,1.4909,1789.4,1789.3,44.76768149]
[1743866430353,1.4909,1789.4,1789.3,44.01618668]
[1743866431654,0.7314,1789.6,1789.3,44.767797]
[1743866431855,1.4909,1789.7,1789.5,0.78262]
[1743866432056,1.4909,1789.7,1789.6,1.4095]
[1743866432261,2.98648,1789.7,1789.4,2.27135]
[1743866432859,0.7826,1789.6,1789.4,2.27135]
[1743866433057,2.2379,1789.6,1789.5,1.4095]
[1743866433259,1.4553,1789.6,1789.5,1.4095]
[1743866433661,2.23789,1789.6,1789.4,1.4887]
[1743866433859,2.23789,1789.6,1789.4,3.68086]
[1743866434060,1.4553,1789.5,1789.4,3.68086]
[1743866434251,1.4553,1789.5,1789.4,4.43287043]
[1743866434767,2.23793,1789.5,1789.4,3.65021043]
[1743866434962,2.23793,1789.5,1789.4,1.4887]
[1743866435161,0.78268,1789.4,1789.3,44.01618668]
[1743866435464,6.90088,1789.4,1789.3,0.00838668]
[1743866435666,9.40088,1789.4,1789.3,0.00838668]
[1743866436757,6.90088,1789.4,1789.3,0.00838668]
[1743866437375,6.90088,1789.4,1788.6,3.2078]
[1743866437376,1.95681,1789.3,1788.6,3.2078]
[1743866437666,0.78295,1788.8,1788.6,3.16657983]
[1743866437859,0.7536,1788.7,1788.6,3.16657983]
[1743866438055,2.1734,1788.7,1788.6,3.91947328]
[1743866438862,2.95638,1788.7,1788.6,3.91947328]
[1743866439069,0.78303,1788.6,1788.5,0.00838668]
[1743866439265,1.4198,1788.6,1788.5,0.00838668]
[1743866441069,2.20283,1788.6,1788.5,0.00838668]
[1743866443169,2.20283,1788.6,1788.5,40.80838668]
[1743866448074,1.4198,1788.6,1788.5,40.80838668]
[1743866448271,2.20283,1788.6,1788.5,40.80838668]
[1743866449375,3.2078,1788.7,1788.5,40.80838668]
[1743866449572,3.2078,1788.7,1788.6,1.4122]
[1743866450270,3.2078,1788.7,1788.6,42.2122]
[1743866452370,0.00838668,1788.8,1788.6,42.2122]
[1743866452575,0.00838668,1788.8,1788.7,2.1397]
[1743866454972,0.00838668,1788.8,1788.7,5.3475]
[1743866456378,0.00838668,1788.8,1788.7,6.13048]
[1743866458083,0.00838668,1788.8,1788.7,6.88199495]
[1743866458780,0.00838668,1788.8,1788.7,6.88199276]
[1743866460585,1.4553,1789.2,1788.9,0.78288]
[1743866460586,2.9594,1789.2,1788.9,0.78288]
[1743866460883,0.78281,1789.1,1789.0,2.222]
[1743866461478,1.5041,1789.2,1789.0,43.022]
[1743866461684,0.00838668,1789.2,1789.1,1.4773]
[1743866461986,0.00838668,1789.2,1789.1,5.46791]
[1743866462178,0.00838668,1789.2,1789.1,9.82026934]
[1743866462380,0.00838668,1789.2,1789.1,9.82024562]
[1743866462579,0.00838668,1789.2,1789.1,9.06791]
[1743866462781,0.00838668,1789.2,1789.1,9.82015966]
[1743866462980,0.00838668,1789.2,1789.1,9.82016472]
[1743866464077,0.79114668,1789.2,1789.1,9.03735472]
[1743866464473,0.79114668,1789.2,1789.1,5.8302353]
[1743866464880,0.79114668,1789.2,1789.1,2.2302353]
[1743866465284,2.25914668,1789.2,1789.1,2.2302353]
[1743866467988,2.25914668,1789.2,1789.1,2.22998357]
[1743866471187,2.25914668,1789.2,1789.1,0.75268357]
[1743866471386,0.78303,1788.6,1788.5,3.21618668]
[1743866471589,0.78303,1788.6,1788.5,0.00838668]
[1743866471795,0.78303,1788.6,1788.5,40.80838668]
[1743866472395,0.78303,1788.6,1788.5,42.32918668]
[1743866472695,2.31461,1788.7,1788.5,45.40406416]
[1743866472886,0.78296,1788.8,1788.6,3.07482152]
[1743866473086,2.31447,1789.0,1788.8,0.78292]
[1743866473291,0.78287,1789.0,1788.9,3.0601]
[1743866473593,0.78287,1789.0,1788.9,3.81261756]
[1743866475396,0.78287,1789.0,1788.9,7.41661756]
[1743866475596,0.78285,1789.1,1788.9,7.41661756]
[1743866475898,0.78285,1789.1,1789.0,1.4702]
[1743866476999,0.78285,1789.0,1788.9,1.5208]
[1743866477395,0.78291,1788.9,1788.7,3.602]
[1743866477591,0.78287,1789.0,1788.8,1.53606894]
[1743866477893,2.30677,1789.0,1788.9,0.75313894]
[1743866478802,0.78298,1788.7,1788.6,3.2078]
[1743866479004,0.78298,1788.7,1788.6,3.96120054]
[1743866479403,0.78298,1788.7,1788.6,3.2078]
[1743866481804,0.78303,1788.6,1788.5,40.80838668]
[1743866482002,0.78303,1788.6,1788.5,41.56185015]
[1743866482501,0.78303,1788.6,1788.5,41.56180237]
[1743866484302,0.78303,1788.6,1788.5,40.80838668]
[1743866484506,0.78303,1788.6,1788.5,41.56160545]
[1743866486211,0.78303,1788.6,1788.5,41.56148318]
[1743866486507,0.78302,1788.7,1788.5,41.56148318]
[1743866486709,0.78302,1788.7,1788.5,43.00794668]
[1743866486903,2.30687,1788.8,1788.6,1.4165]
[1743866487095,1.5239,1788.8,1788.6,1.4165]
[1743866487902,0.78298,1788.7,1788.6,1.4165]
[1743866488509,0.78303,1788.6,1788.5,44.01618668]
[1743866488709,0.78303,1788.6,1788.5,46.18554385]
[1743866490408,0.78301,1788.7,1788.5,46.18554385]
[1743866490609,0.78301,1788.7,1788.5,46.21574668]
[1743866490809,0.78301,1788.7,1788.6,1.4937]
[1743866491807,2.30686,1788.8,1788.6,2.27673]
[1743866492215,2.21248,1788.7,1788.6,1.4937]
[1743866492413,2.21248,1788.7,1788.6,2.24648277]
[1743866494209,2.21248,1788.7,1788.6,2.2466238]
[1743866497216,2.21248,1788.7,1788.6,2.24706497]
[1743866498621,0.78298,1788.7,1788.6,3.03009497]
[1743866498816,0.78297,1788.8,1788.6,3.03009497]
[1743866499018,0.78297,1788.8,1788.7,3.69416497]
[1743866500114,2.20223,1788.9,1788.7,3.69416497]
[1743866500314,2.20223,1788.9,1788.8,1.419]
[1743866500518,4.6271,1788.9,1788.5,44.01618668]
[1743866500710,0.783,1788.7,1788.6,0.75439852]
[1743866501112,2.2023,1788.7,1788.6,0.75439852]
[1743866502619,2.9645,1788.7,1788.6,0.75487081]
[1743866504317,0.78303,1788.6,1788.5,0.00838668]
[1743866504517,2.21893,1788.6,1788.5,0.00838668]
[1743866504715,4.71893,1788.6,1788.5,0.00838668]
[1743866506318,2.21893,1788.6,1788.5,0.00838668]
[1743866507924,5.42673,1788.6,1788.5,0.00838668]
[1743866509719,0.78325,1788.1,1788.0,3.2078]
[1743866510119,0.78325,1788.1,1787.9,42.9673]
[1743866510319,1.4318,1788.0,1787.9,42.9673]
[1743866511118,2.21509,1788.0,1787.9,42.9673]
[1743866512418,2.21509,1788.0,1787.9,41.568]
[1743866512919,2.97659,1788.0,1787.9,40.8]
[1743866513118,2.97659,1788.0,1787.8,3.21618668]
[1743866513321,2.28293,1787.9,1787.8,0.00838668]
[1743866516032,4.78293,1787.9,1787.8,0.00838668]
[1743866517021,2.28293,1787.9,1787.8,0.00838668]
[1743866521931,0.00838668,1788.1,1787.8,2.19735668]
[1743866522131,0.78329,1788.0,1787.9,2.1069]
[1743866523339,0.78333,1787.9,1787.8,0.00838668]
[1743866523729,0.78333,1787.9,1787.8,1.48798668]
[1743866524038,1.53841,1788.0,1787.8,1.48798668]
[1743866524240,0.78333,1787.9,1787.8,1.48798668]
[1743866525036,1.53842,1788.0,1787.8,1.48798668]
[1743866525234,0.78332,1788.0,1787.8,1.48798668]
[1743866526238,0.78332,1788.0,1787.8,2.27135668]
[1743866526439,0.00838668,1788.1,1787.9,0.78333]
[1743866526633,0.00838668,1788.1,1787.9,2.25323]
[1743866527138,0.00838668,1788.1,1788.0,1.4699]
[1743866527542,0.79163668,1788.1,1788.0,1.4699]
[1743866528237,0.78333,1787.9,1787.8,3.61938668]
[1743866528437,0.78333,1787.9,1787.8,1.47828668]
[1743866528839,2.32192,1788.0,1787.8,1.47828668]
[1743866529035,2.32192,1788.0,1787.8,2.26165668]
[1743866529241,0.79163668,1788.1,1787.8,1.47828668]
[1743866529441,0.78329,1788.0,1787.9,1.4791]
[1743866530646,2.25945668,1788.1,1787.9,1.4791]
[1743866530943,2.25945668,1788.1,1788.0,0.7367]
[1743866533750,0.78329,1788.0,1787.9,1.4791]
[1743866533946,3.00789,1788.0,1787.9,1.4791]
[1743866534146,2.28999,1788.0,1787.9,1.4791]
[1743866534752,2.28999,1788.0,1787.9,2.23319933]
[1743866537149,0.79166668,1788.1,1787.9,2.23319933]
[1743866537348,0.79166668,1788.1,1788.0,1.4431]
[1743866538656,0.00838668,1788.1,1788.0,1.4431]
[1743866538853,0.79163668,1788.1,1788.0,1.4431]
[1743866539753,0.78329,1788.0,1787.9,0.7134]
[1743866539950,2.23599,1788.0,1787.9,2.85918916]
[1743866540843,1.4527,1788.0,1787.9,2.85918916]
[1743866541047,0.00838668,1788.1,1787.9,2.85918916]
[1743866541249,0.00838668,1788.1,1788.0,2.92907916]
[1743866541649,0.00838668,1788.1,1788.0,3.46559694]
[1743866542150,0.00838668,1788.1,1788.0,2.92900014]
[1743866542454,0.00838668,1788.1,1788.0,3.46544063]
[1743866543959,0.78314,1788.4,1788.2,0.78319]
[1743866544151,0.78314,1788.4,1788.3,2.99006]
[1743866544355,0.78307,1788.5,1788.4,0.78312]
[1743866544657,0.78307,1788.5,1788.4,2.1774591]
[1743866547162,0.78307,1788.5,1788.4,1.4231]
[1743866547346,1.43908668,1788.6,1788.3,0.7374]
[1743866547347,0.78312,1788.4,1788.3,0.7374]
[1743866547553,2.19232,1788.4,1788.3,1.49136362]
[1743866547959,1.4092,1788.4,1788.1,3.9787]
[1743866548258,2.1515,1788.3,1788.2,0.75400143]
[1743866548456,2.1515,1788.3,1788.2,2.23400143]
[1743866548652,1.4092,1788.3,1788.2,2.23400143]
[1743866550359,1.4092,1788.3,1788.2,3.01720143]
[1743866550758,1.4092,1788.3,1788.2,2.23400143]
[1743866550960,1.4092,1788.3,1788.2,3.01720143]
[1743866551860,1.4092,1788.3,1788.2,2.23400143]
[1743866552461,1.4092,1788.3,1788.2,0.75400143]
[1743866552462,2.19236,1788.3,1788.2,0.75400143]
[1743866552663,2.90866,1788.3,1788.2,0.75400143]
[1743866553358,0.7832,1788.2,1788.1,3.2078]
[1743866553558,2.251,1788.2,1788.1,3.96217499]
[1743866554856,2.251,1788.2,1788.1,3.96224944]
[1743866555450,1.4678,1788.2,1788.1,5.41924944]
[1743866555855,1.4678,1788.2,1788.1,6.20249944]
[1743866558461,1.4678,1788.2,1788.1,6.20258984]
[1743866559662,1.4678,1788.2,1788.1,3.96233984]
[1743866559960,0.78319,1788.3,1788.1,4.74557984]
[1743866560161,2.28929,1788.3,1788.2,2.19573984]
[1743866562151,2.28929,1788.3,1788.2,2.19586504]
[1743866563964,2.28929,1788.3,1788.2,3.62516504]
[1743866565867,2.28929,1788.3,1788.2,3.62548057]
[1743866567069,2.28926,1788.3,1788.2,3.62548057]
[1743866567568,0.78314,1788.4,1788.2,3.62548057]
[1743866567762,2.21294,1788.4,1788.3,2.28708057]
[1743866568559,0.00838668,1788.6,1788.3,2.82393087]
[1743866568764,0.79143668,1788.6,1788.4,2.26318057]
[1743866568964,0.79143668,1788.6,1788.5,3.72678057]
[1743866569765,0.79143668,1788.6,1788.5,0.75498057]
[1743866569963,0.78309,1788.5,1788.3,0.78315]
[1743866570164,1.4152,1788.5,1788.4,0.75527086]
[1743866570370,1.4152,1788.5,1788.4,3.72707086]
[1743866571266,1.4152,1788.5,1788.4,3.72733859]
[1743866572974,1.4152,1788.5,1788.4,4.51045859]
[1743866573176,1.4152,1788.5,1788.4,3.72733859]
[1743866573473,2.19827,1788.5,1788.4,3.72733859]
[1743866574278,1.4152,1788.5,1788.4,3.72733859]
[1743866574976,1.4152,1788.5,1788.4,3.72726782]
[1743866575977,1.4152,1788.5,1788.4,4.51038782]
[1743866576779,1.4152,1788.5,1788.4,3.72726782]
[1743866577480,1.4152,1788.5,1788.4,4.51038782]
[1743866577677,0.79144668,1788.6,1788.4,4.51038782]
[1743866577885,0.79144668,1788.6,1788.5,2.17736782]
[1743866578591,0.79144668,1788.6,1788.5,2.17725947]
[1743866579689,2.30804668,1788.6,1788.5,0.75535947]
[1743866581383,0.78307,1788.5,1788.4,0.712]
[1743866581583,3.71207,1788.5,1788.4,1.46725685]
[1743866582579,2.929,1788.5,1788.4,2.25037685]
[1743866582776,0.79143668,1788.6,1788.4,3.71685685]
[1743866582979,0.79143668,1788.6,1788.5,2.94835685]
[1743866583492,2.28443668,1788.6,1788.5,2.94832416]
[1743866583793,2.28443668,1788.6,1788.5,2.94832439]
[1743866583990,2.28443668,1788.6,1788.5,0.75522439]
[1743866584188,0.78316,1788.3,1788.1,3.2078]
[1743866584388,1.52692,1788.2,1788.0,2.22099]
[1743866584589,1.4633,1788.1,1788.0,2.22099]
[1743866584783,1.4633,1788.1,1788.0,3.51328247]
[1743866587188,1.4633,1788.1,1788.0,3.51325028]
[1743866588995,1.4633,1788.1,1788.0,3.51319129]
[1743866594491,1.4633,1788.1,1788.0,3.51291488]
[1743866596396,1.4633,1788.1,1788.0,3.51277034]
[1743866596888,1.4633,1788.1,1788.0,6.72057034]
[1743866598202,1.4633,1788.1,1788.0,6.72051738]
[1743866599099,1.4633,1788.1,1788.0,6.72047726]
[1743866599893,1.4633,1788.1,1788.0,6.72053199]
[1743866601003,1.4633,1788.1,1788.0,6.72049526]
[1743866603604,1.4633,1788.1,1788.0,6.72052292]
[1743866605508,1.4633,1788.1,1788.0,6.72060442]
[1743866607008,1.4633,1788.1,1788.0,6.72073843]
[1743866607208,2.24655,1788.1,1788.0,4.49991452]
[1743866607401,2.24655,1788.1,1788.0,0.75527929]
[1743866607603,0.78333,1787.9,1787.8,0.00838668]
[1743866607802,3.99113,1787.9,1787.8,0.00838668]
[1743866608003,7.58313,1787.9,1787.8,0.00838668]
[1743866608202,9.04453,1787.9,1787.8,0.00838668]
[1743866611406,5.83673,1787.9,1787.8,0.00838668]
[1743866617319,9.04453,1787.9,1787.8,0.00838668]
[1743866617620,5.45253,1787.9,1787.8,0.00838668]
[1743866618012,6.92793,1787.9,1787.8,0.00838668]
[1743866619717,3.72013,1787.9,1787.8,0.00838668]
[1743866619923,0.78347,1787.6,1787.5,0.7463]
[1743866620126,0.78347,1787.6,1787.5,0.7539266]
[1743866620324,0.78347,1787.6,1787.4,3.9283]
[1743866620525,1.5259,1787.5,1787.4,44.7283]
[1743866620827,1.5259,1787.5,1787.4,46.26568236]
[1743866621513,0.00838668,1787.6,1787.4,46.26568236]
[1743866621816,1.53428668,1787.6,1787.5,2.93725171]
[1743866622418,2.31775668,1787.6,1787.5,2.93725171]
[1743866624924,2.31775668,1787.6,1787.5,2.93722625]
[1743866625624,2.31775668,1787.6,1787.5,2.93721586]
[1743866626224,2.31775668,1787.6,1787.5,2.1835]
[1743866627822,2.31775668,1787.6,1787.5,2.93724329]
[1743866629127,2.31775668,1787.6,1787.5,2.93730223]
[1743866630930,2.31775668,1787.6,1787.5,2.9374923]
[1743866632630,2.31775668,1787.6,1787.5,3.7210023]
[1743866633030,2.31775668,1787.6,1787.5,2.9374923]
[1743866636632,0.00838668,1787.6,1787.5,4.25808575]
[1743866638137,4.6098,1788.1,1787.5,11.52032575]
[1743866638330,3.99105,1788.1,1787.9,0.78331]
[1743866638534,3.99105,1788.1,1788.0,3.7137923]
[1743866641438,3.99105,1788.1,1788.0,2.2011923]
[1743866642536,3.99105,1788.1,1788.0,1.4481923]
[1743866642736,3.99105,1788.1,1788.0,1.44944471]
[1743866643138,3.99105,1788.1,1788.0,1.44943359]
[1743866643440,0.78325,1788.1,1788.0,1.44943359]
[1743866643641,0.78325,1788.1,1788.0,0.75523359]
[1743866644032,0.78333,1787.9,1787.8,1.4701]
[1743866644237,2.9219,1788.0,1787.8,2.22520129]
[1743866644534,2.28743,1787.9,1787.8,1.4701]
[1743866644734,2.28743,1787.9,1787.8,2.22517371]
[1743866644941,2.28743,1787.9,1787.8,2.22518043]
[1743866647345,2.28743,1787.9,1787.8,5.43298043]
[1743866648638,2.28743,1787.9,1787.8,5.43286484]
[1743866650547,2.28743,1787.9,1787.8,5.43284431]
[1743866653538,2.28743,1787.9,1787.8,2.22504431]
[1743866654949,2.28743,1787.9,1787.8,0.75494431]
[1743866655541,1.5041,1787.9,1787.8,0.75503917]
[1743866655743,2.28743,1787.9,1787.8,0.75503917]
[1743866655944,2.28743,1787.9,1787.8,1.49551878]
[1743866656848,0.78338,1787.8,1787.7,1.4226]
[1743866657049,2.28978,1787.8,1787.7,2.17768669]
[1743866657847,2.28978,1787.8,1787.7,0.75508669]
[1743866659555,0.78342,1787.7,1787.6,3.9128]
[1743866659758,2.28982,1787.7,1787.6,4.66808208]
[1743866660349,2.28982,1787.7,1787.6,1.46028208]
[1743866660657,2.28982,1787.7,1787.6,6.11098208]
[1743866660949,0.78342,1787.7,1787.6,6.64788009]
[1743866661155,0.78342,1787.7,1787.6,6.64791777]
[1743866661354,0.78342,1787.7,1787.6,6.64806203]
[1743866661545,0.7834,1787.8,1787.6,7.43153203]
[1743866661749,0.7834,1787.8,1787.7,2.19831139]
[1743866661951,0.7834,1787.8,1787.7,2.73523837]
[1743866663359,0.7834,1787.8,1787.7,2.73534996]
[1743866663660,0.7834,1787.8,1787.7,2.19836534]
[1743866664161,0.7834,1787.8,1787.7,2.73542474]
[1743866664458,0.7834,1787.8,1787.7,2.19836534]
[1743866665260,0.7834,1787.8,1787.7,2.73553057]
[1743866666361,0.7834,1787.8,1787.7,2.73564409]
[1743866666663,0.7834,1787.8,1787.7,2.19836534]
[1743866667161,0.7834,1787.8,1787.7,2.7356801]
[1743866667361,0.7834,1787.8,1787.7,2.19836534]
[1743866668159,1.4871,1787.8,1787.7,2.19883335]
[1743866668360,1.4871,1787.8,1787.7,0.75593335]
[1743866668561,2.2464,1787.8,1787.7,0.75593335]
[1743866668760,2.2464,1787.8,1787.7,0.74754667]
[1743866668761,5.4542,1787.8,1787.7,0.74754667]
[1743866668958,0.78351,1787.5,1787.4,3.2078]
[1743866670261,0.78355,1787.4,1787.3,0.70508668]
[1743866670464,2.24915,1787.4,1787.3,0.70508668]
[1743866670866,2.24915,1787.4,1787.3,2.11548668]
[1743866679065,0.78355,1787.4,1787.3,2.11548668]
[1743866679368,0.78354,1787.5,1787.3,2.89906668]
[1743866679570,0.78354,1787.5,1787.4,1.5142]
[1743866679769,0.78354,1787.5,1787.4,2.2365]
[1743866679971,4.7128,1787.6,1787.4,2.2365]
[1743866680171,5.49627,1787.6,1787.5,1.5142]
[1743866680470,4.7128,1787.6,1787.5,1.5142]
[1743866680673,0.78346,1787.7,1787.5,1.5142]
[1743866680972,0.78346,1787.7,1787.6,0.7049]
[1743866681574,2.20456,1787.7,1787.6,0.7049]
[1743866684071,3.2078,1788.0,1787.6,1.45930577]
[1743866684275,0.78338,1787.8,1787.7,2.86730577]
[1743866685274,0.78338,1787.8,1787.7,2.86729188]
[1743866686375,0.78342,1787.7,1787.6,0.7049]
[1743866686571,0.78342,1787.7,1787.6,1.459358]
[1743866687075,0.78342,1787.7,1787.6,1.4593665]
[1743866687275,2.21592,1787.7,1787.6,1.4593665]
[1743866688774,2.21592,1787.7,1787.6,2.1867]
[1743866688981,2.21592,1787.7,1787.6,2.94118873]
[1743866690681,2.21592,1787.7,1787.6,2.9412071]
[1743866691584,2.21592,1787.7,1787.6,0.7545071]
[1743866692584,0.78347,1787.6,1787.5,3.2078]
[1743866692783,2.27627,1787.6,1787.5,3.96243229]
[1743866693086,2.27627,1787.6,1787.5,5.42683229]
[1743866694178,2.27627,1787.6,1787.5,2.21903229]
[1743866695986,0.78347,1787.6,1787.5,2.21903229]
[1743866696480,6.1738,1787.8,1787.5,2.21903229]
[1743866696481,0.78345,1787.7,1787.5,3.00254229]
[1743866696686,0.78345,1787.7,1787.6,2.24193229]
[1743866697096,0.78345,1787.7,1787.6,2.77859017]
[1743866697991,0.78345,1787.7,1787.6,2.77859256]
[1743866698395,0.78345,1787.7,1787.6,3.56206256]
[1743866698694,0.78345,1787.7,1787.6,2.77859256]
[1743866698997,0.78345,1787.7,1787.6,2.77860093]
[1743866699697,0.78345,1787.7,1787.6,2.24193229]
[1743866699993,0.78345,1787.7,1787.6,0.75490415]
[1743866700591,1.54105,1787.7,1787.6,0.75490415]
[1743866701199,0.78347,1787.6,1787.5,1.4876]
[1743866701395,2.18617,1787.6,1787.5,2.24253011]
[1743866702898,2.18617,1787.6,1787.5,2.24264185]
[1743866704698,2.18617,1787.6,1787.5,2.24283088]
[1743866705198,2.18617,1787.6,1787.5,2.77976356]
[1743866708702,2.18617,1787.6,1787.5,1.29216356]
[1743866708903,2.89877,1787.6,1787.5,1.29216356]
[1743866710102,0.78355,1787.4,1787.3,1.45018668]
[1743866710296,1.3908,1787.5,1787.3,3.5273586]
[1743866710497,2.17434,1787.5,1787.4,2.02473616]
[1743866711105,2.17434,1787.5,1787.4,4.24593616]
[1743866711396,1.3908,1787.5,1787.4,4.24593616]
[1743866711597,1.54104,1787.7,1787.5,0.78348]
[1743866711803,0.78344,1787.7,1787.6,2.28308826]
[1743866712004,0.78344,1787.7,1787.6,2.28296775]
[1743866712802,0.78344,1787.7,1787.6,2.82036973]
[1743866714403,0.78344,1787.7,1787.6,0.75596775]
[1743866715596,0.78344,1787.7,1787.6,2.18206775]
[1743866715803,0.78344,1787.7,1787.6,0.75596775]
[1743866717106,0.78351,1787.5,1787.4,4.6331]
[1743866717299,0.78351,1787.5,1787.4,2.18140603]
[1743866717505,0.78351,1787.5,1787.4,2.18141193]
[1743866717705,2.98161,1787.5,1787.4,2.18141193]
[1743866718804,2.98161,1787.5,1787.4,1.45031193]
[1743866719201,2.98161,1787.5,1787.4,1.45011041]
[1743866719403,2.98161,1787.5,1787.4,0.75591041]
[1743866721305,0.78355,1787.4,1787.3,2.15908668]
[1743866721507,2.31075,1787.4,1787.3,3.45197908]
[1743866723006,2.31075,1787.4,1787.3,3.45184381]
[1743866724106,0.7261,1787.6,1787.3,3.45184381]
[1743866724309,0.78338,1787.8,1787.6,0.78344]
[1743866724510,0.78338,1787.8,1787.7,1.47771142]
[1743866725311,0.78338,1787.8,1787.7,0.75561142]
[1743866725705,2.23128,1787.8,1787.7,0.75561142]
[1743866726511,0.78347,1787.6,1787.5,5.677]
[1743866726809,0.78347,1787.6,1787.5,6.96953213]
[1743866727811,2.24007,1787.6,1787.5,6.96953213]
[1743866728012,1.4566,1787.6,1787.5,7.75304213]
[1743866728512,3.2078,1787.9,1787.5,7.75310706]